Cogmind - Beta 16 @@@ ROGUE MODE // 2026.01.14 @ 20:15:47 Player: mlys Result: Destroyed by S-10 Pest with Light Assault Rifle Performance ------------- Evolutions (1) 500 Regions Visited (3) 600 Robots Destroyed (13) 65 Value Destroyed (356) 356 Prototype IDs (0) 0 Alien Tech Used (0) 0 Bonus (0) 0 TOTAL SCORE: 1521 Bonus ------- None Cogmind --------- Core Integrity 0/400 Matter 300/300 Energy 100/100 System Corruption 0% Temperature Cool (6) Movement Core (50) Location -9/Mines Parts ------- > --- POWER (2) -------- (None) > --- PROPULSION (2) --- (None) > --- UTILITY (3) ------ Signal Interpreter > --- WEAPON (2) ------- (None) > --- INVENTORY (5) ---- Assault Cannon Mining Laser Peak State ------------ > --- POWER ------------ Ion Engine > --- PROPULSION ------- Aluminum Leg Aluminum Leg > --- UTILITY ---------- Signal Interpreter Improved Light Armor Plating Improved Light Armor Plating > --- WEAPON ----------- Assault Cannon Assault Cannon > --- INVENTORY -------- Medium Laser Mining Laser [Rating: 16] Favorites ----------- Power Ion Engine Engine Ion Engine Propulsion Aluminum Leg Leg Aluminum Leg Wheel Compact Wheel Utility Signal Interpreter Device Seismic Detector Storage Small Storage Unit Processor Signal Interpreter Protection Improved Light Armor Plating Weapon Medium Laser Energy Gun Medium Laser Ballistic Gun Light Assault Rifle Ballistic Cannon Assault Cannon Special Weapon Mining Laser Special Melee Weapon Datajack Build | -11 -10 -9 -9 ------- Run | Yrd Mat Mat Min Slots Evolved 2 | . . 2 . Power 1 | . . 1 . Propulsion . | . . . . Utility 1 | . . 1 . Weapon . | . . . . Parts Attached 20 | 7 5 6 2 Power 3 | 2 1 . . Engine 3 | 2 1 . . Core . | . . . . Reactor . | . . . . Propulsion 4 | 2 2 . . Treads . | . . . . Leg 2 | . 2 . . Wheel 2 | 2 . . . Hover . | . . . . Flight . | . . . . Utility 6 | 1 1 4 . Device 1 | . . 1 . Storage 1 | 1 . . . Processor 1 | . . 1 . Hackware . | . . . . Protection 3 | . 1 2 . Artifact . | . . . . Weapon 7 | 2 1 2 2 Energy Gun 1 | 1 . . . Energy Cannon . | . . . . Ballistic Gun 2 | 1 . . 1 Ballistic Cannon 2 | . . 2 . Launcher . | . . . . Special Weapon 1 | . . . 1 Impact Weapon . | . . . . Slashing Weapon . | . . . . Piercing Weapon . | . . . . Special Melee Weapon 1 | . 1 . . Unidentified Prototypes . | . . . . Parts Lost 9 | . 1 . 8 Power 1 | . . . 1 Propulsion 2 | . . . 2 Utility 2 | . . . 2 Weapon 4 | . 1 . 3 Highest Loss Streak 7 | . 1 . 7 To Critical Strikes . | . . . . Average Backups 2 | 1 2 3 2 Power . | . . . . Propulsion . | . . . . Utility . | . . . . Weapon 1 | . 1 2 2 Tool/Special . | . . . . Unused Backups 2 | 2 . . . Power . | . . . . Propulsion 2 | 2 . . . Utility . | . . . . Weapon . | . . . . Tool/Special . | . . . . Average Slot Usage (%) 62 | . 86 86 27 Engine 7 | . 14 11 . Leg 10 | . 9 22 1 Wheel 4 | . 18 . . Processor 7 | . . 9 11 Protection 10 | . 12 19 1 Energy Gun 8 | . 14 2 9 Ballistic Gun 3 | . 8 3 1 Ballistic Cannon 5 | . . 15 . Special Melee Weapon 1 | . 5 . . Peak Build Rating 16 | 6 7 16 16 Average Rating 7 | 3 6 13 2 On Entrance 7 | . 6 6 16 Avg Prop Armor Cover (%) 4 | . . 4 5 Naked Turns . | . . . . Heaviest Build 21 | 11 14 21 19 Greatest Support 26 | 26 26 20 10 Greatest Overweight (x) 2 | . . 2 1 Average Overweight (x) . | . . . . Largest Inventory Capacity 8 | 8 8 5 5 Average Capacity 5 | 6 5 5 5 Most Carried 5 | 5 5 5 3 Average Carried 2 | . 3 3 2 Final Capacity 8 | 8 5 5 5 Final Carried 5 | . 5 3 2 Class Distribution -------------------- 100% | Mutant Dominant Class ---------------- Mutant | -10/Materials Mutant | -9/Materials Mutant | -9/Mines Resources | -11 -10 -9 -9 ----------- Run | Yrd Mat Mat Min Matter Collected 633 | 203 136 230 64 Remotely . | . . . . Salvage Created 462 | . 84 355 23 Parts 29 | . 6 21 2 Haulers Intercepted . | . . . . Recyclers Shooed . | . . . . Parts Field Recycled . | . . . . Retrieved Matter . | . . . . Parts Self-Destructed . | . . . . Prevented . | . . . . Parts Restored . | . . . . Kills | -11 -10 -9 -9 ------- Run | Yrd Mat Mat Min Combat Hostiles Destroyed 8 | . 2 6 . Guns 2 | . 2 . . Cannons 6 | . . 6 . Classes Destroyed 5 | . 1 3 1 Builder 2 | . . . 2 Recycler 2 | . . 2 . Watcher 1 | . . 1 . Grunt 5 | . 2 3 . Sentry 3 | . . 3 . Best Kill Streak 5 | . 2 5 2 Combat Bots Only 2 | . 2 2 . Max Kills in Single Turn 2 | . 1 2 1 Gunslinging . | . . . . Exploded . | . . . . Melee . | . . . . Uniques/NPCs Destroyed . | . . . . Combat | -11 -10 -9 -9 -------- Run | Yrd Mat Mat Min Hostile Shots Fired 105 | . 21 43 41 Missed 26 | . 4 16 6 Hits 79 | . 17 27 35 Melee 2 | . . . 2 Projectile 77 | . 17 27 33 AOE 14 | . . . 14 Critical Strikes 1 | . . 1 . Damage Taken 1551 | . 181 404 966 Core 423 | . 22 56 345 Absorbed by Shields . | . . . . Core Remaining (%) 95 | 100 91 . . Volleys Fired 46 | 1 6 31 8 Largest 2 | 2 2 2 2 Hottest 150 | 70 70 74 150 Shots Fired 75 | 2 9 51 13 Gun 27 | 2 9 8 8 Cannon 45 | . . 43 2 Launcher . | . . . . Special 3 | . . . 3 Kinetic 59 | 1 3 50 5 Thermal 16 | 1 6 1 8 Explosive . | . . . . Electromagnetic . | . . . . Robot Hit Streak 12 | . 5 12 1 Robot Miss Streak 7 | . 1 6 7 Penetration Max . | . . . . Secondary Targets . | . . . . Shots Hit Robots 41 | . 10 27 4 Core Hits 17 | . 4 11 2 Critical Kills . | . . . . Critical Parts Destroyed . | . . . . Critical Strikes . | . . . . Melee Attacks 3 | . 3 . . Impact . | . . . . Slashing . | . . . . Piercing . | . . . . Sneak Attacks 1 | . 1 . . Combat Hostiles . | . . . . Follow-up Attacks . | . . . . Damage Inflicted 824 | . 86 642 96 Guns 175 | . 86 41 48 Cannons 625 | . . 601 24 Explosions . | . . . . Melee . | . . . . Ramming . | . . . . Kinetic 715 | . 25 630 60 Thermal 109 | . 61 12 36 Explosive . | . . . . Electromagnetic . | . . . . Impact . | . . . . Slashing . | . . . . Piercing . | . . . . Highest Corruption . | . . . . Average Corruption . | . . . . Corruption Purged . | . . . . Corruption Blocked . | . . . . Overload Shots . | . . . . Overflow Damage . | . . . . Projectiles . | . . . . Explosions . | . . . . Melee . | . . . . Knockbacks 3 | . . 3 . Impact . | . . . . Kinetic 3 | . . 3 . Secondary . | . . . . Self-Inflicted Damage . | . . . . Shots . | . . . . Rammed . | . . . . Targets Rammed . | . . . . Kicked . | . . . . Crushed . | . . . . Highest Temperature 341 | 30 159 341 20 Average Temperature 103 | 18 84 126 9 Received Heat Transfer 321 | . 102 207 12 Effects 3 | . . 3 . Energy Bleed 1 | . . 1 . Short Circuit 2 | . . 2 . Siege Activations . | . . . . Martial Activations . | . . . . Shielding Activations . | . . . . Robots Disrupted . | . . . . Combat Hostiles . | . . . . Robots Corrupted . | . . . . Combat Hostiles . | . . . . Parts Fried . | . . . . Impact Corruptions . | . . . . Robots Melted . | . . . . Combat Hostiles . | . . . . Parts Melted 2 | . 1 . 1 Heat Transferred 309 | . 185 37 87 Parts Sabotaged . | . . . . Parts Stolen . | . . . . Parts Stripped . | . . . . Power Chain Reactions . | . . . . Alert | -11 -10 -9 -9 ------- Run | Yrd Mat Mat Min Maximum Alert Level . | . . . . Low Security (%) 100 | 100 100 100 100 Level 1 . | . . . . Level 2 . | . . . . Level 3 . | . . . . Level 4 . | . . . . Level 5 . | . . . . High Security . | . . . . Max Security . | . . . . Peak Influence 90 | . 30 90 27 Initial 27 | . . . 27 Average 13 | . 3 36 1 Influence Increases 257 | . 50 197 10 Destroy 0b10 Robot/C 160 | . 40 120 . Destroy 0b10 Robot/NC 25 | . . 15 10 Destroy Leader 62 | . 10 52 . Destroy Structure 10 | . . 10 . Influence Decreases 257 | . 50 127 80 Entered New Map 43 | . . . 43 Time Decay 187 | . 40 127 20 Lost Part 27 | . 10 . 17 Squads Dispatched 3 | . 1 1 1 Investigation . | . . . . Extermination . | . . . . Reinforcement 3 | . 1 1 1 Assault . | . . . . Garrison . | . . . . Intercept . | . . . . Searches Triggered . | . . . . Construction Impeded 1 | . . . 1 Haulers Reinforced . | . . . . Active Scanning Responses . | . . . . Cargo Convoy Interrupts . | . . . . Stealth | -11 -10 -9 -9 --------- Run | Yrd Mat Mat Min Distress Signals 2 | . . 2 . Communications Jammed . | . . . . Distress Signals . | . . . . Times Spotted 38 | . 3 10 25 Peak Tracking Total 21 | . 2 3 21 Tactical Retreats 1 | . . . 1 Traps | -11 -10 -9 -9 ------- Run | Yrd Mat Mat Min Traps Triggered . | . . . . Indirectly . | . . . . Trap Hack Attempts . | . . . . Triggered . | . . . . Disarmed . | . . . . Reprogrammed . | . . . . Reused . | . . . . Traps Extracted . | . . . . Installed . | . . . . Triggered . | . . . . Machines | -11 -10 -9 -9 ---------- Run | Yrd Mat Mat Min Machines Disabled . | . . . . Max in Single Turn . | . . . . Machines Repaired . | . . . . Machines Dismantled . | . . . . Machines Sabotaged . | . . . . Overloaded Fab Kills . | . . . . Hacking | -11 -10 -9 -9 --------- Run | Yrd Mat Mat Min Machines Accessed 2 | . . 2 . Terminals 1 | . . 1 . Fabricators . | . . . . Repair Stations . | . . . . Recycling Units . | . . . . Scanalyzers 1 | . . 1 . Garrison Access . | . . . . Total Hacks 5 | . . 5 . Successful 4 | . . 4 . Failed 1 | . . 1 . Catastrophic . | . . . . Database Lockouts . | . . . . Manual . | . . . . Terminals 1 | . . 1 . Fabricators . | . . . . Repair Stations . | . . . . Recycling Units . | . . . . Scanalyzers 4 | . . 4 . Garrison Access . | . . . . Terminal Hacks . | . . . . Fabricator Hacks . | . . . . Repair Station Hacks . | . . . . Recycling Unit Hacks . | . . . . Scanalyzer 4 | . . 4 . Insert Component 1 | . . 1 . Analyze 1 | . . 1 . Retrieve Study 2 | . . 2 . Garrison Access Hacks . | . . . . Unauthorized Hacks . | . . . . Terminals . | . . . . Fabricators . | . . . . Repair Stations . | . . . . Recycling Units . | . . . . Scanalyzers . | . . . . Garrison Access . | . . . . Data Cores Recovered . | . . . . Used . | . . . . Hacking Detections 1 | . . 1 . Full Trace Events . | . . . . Feedback Events . | . . . . Feedback Blocked . | . . . . Robot Schematics Acquired . | . . . . Robots Built . | . . . . Authchips . | . . . . Time . | . . . . Total Robot Build Rating . | . . . . Part Schematics Acquired 1 | . . 1 . Parts Built . | . . . . Authchips . | . . . . Time . | . . . . Total Part Build Rating . | . . . . Part Studies Acquired 1 | . . 1 . Parts Repaired . | . . . . Time . | . . . . Parts Recycled . | . . . . Recycled Matter . | . . . . Retrieved Matter . | . . . . Retrieved Components . | . . . . Parts Scanalyzed 1 | . . 1 . Part Schematics Acquired 1 | . . 1 . Parts Damaged . | . . . . Bothacking | -11 -10 -9 -9 ------------ Run | Yrd Mat Mat Min Used RIF Installer . | . . . . Robots Hacked 2 | . 2 . . Non-combat 1 | . 1 . . Combat 1 | . 1 . . Robot Hacks Applied 2 | . 2 . . parse_system 1 | . 1 . . no_distress 1 | . 1 . . Relay Couplers Released . | . . . . Fabnet Peak Effective % . | . . . . Robots Rewired . | . . . . Allies Hacked . | . . . . Hacks Repelled . | . . . . Allies | -11 -10 -9 -9 -------- Run | Yrd Mat Mat Min Total Allies . | . . . . Largest Group . | . . . . Highest-Rated Group . | . . . . Highest-Rated Ally . | . . . . Total Orders . | . . . . Ally Attacks . | . . . . Total Damage . | . . . . Kills . | . . . . Allies Corrupted . | . . . . Allies Melted . | . . . . Intel | -11 -10 -9 -9 ------- Run | Yrd Mat Mat Min Active Infowar (turns) 69 | . . 69 . Seismic 69 | . . 69 . Robot Analysis Total . | . . . . Derelict Logs Recovered . | . . . . Drone Launches . | . . . . Drone Recoveries . | . . . . Exploration | -11 -10 -9 -9 ------------- Run | Yrd Mat Mat Min Turns Passed 1040 | 61 249 334 396 Spaces Moved 531 | 55 216 138 122 Core 136 | 24 . . 112 Treads . | . . . . Legs 217 | . 69 138 10 Wheels 178 | 31 147 . . Hover . | . . . . Flight . | . . . . Fastest Speed 50 | 50 90 120 50 Average Speed 107 | 72 99 175 61 Slowest Speed 260 | 90 120 260 190 Overloaded Moves . | . . . . Propulsion Burnouts . | . . . . Robots Hopped . | . . . . Potential Cave-ins 2 | . . . 2 Cave-ins Triggered 1 | . . . 1 Exploration Rate (%) 15 | 4 27 13 19 Regions Visited 3 Branch Regions 1 Pre-discovered Areas . | . . . . Known Exits Taken 1 | . . 1 . Unknown Exits Taken 2 | 1 1 . . Scrap Searched . | . . . . Spaces Dug 2 | . . . 2 Terrain Destroyed 13 | . . 11 2 Melee . | . . . . Projectile 13 | . . 11 2 AOE . | . . . . Terrain Rammed . | . . . . Walls Destroyed . | . . . . Machines Disabled . | . . . . Actions | -11 -10 -9 -9 --------- Run | Yrd Mat Mat Min Total 923 | 75 238 186 424 Wait 290 | . . . 290 Move 528 | 54 215 137 122 Hop . | . . . . Pick Up 22 | 9 7 6 . Fast Attach . | . . . . Attach 15 | 7 2 4 2 Detach 1 | . . . 1 Swap 8 | 1 4 2 1 Drop 10 | 3 1 6 . Fire 46 | 1 6 31 8 Melee 3 | . 3 . . Ram . | . . . . Kick . | . . . . Crush . | . . . . Escape Stasis . | . . . . Rewire . | . . . . Trap . | . . . . Miscellaneous . | . . . . Route ------- -11/Scrapyard -10/Materials -9/Materials -9/Mines History --------- Turn | Location | Event 42 | -11/Scrapyard | Discovered new exit (range 14) 62 | -11/Scrapyard | Entered Materials 179 | -10/Materials | Discovered new exit (range 15) 306 | -10/Materials | Build established: Mutant 311 | -10/Materials | Entered another Materials area 311 | -9/Materials | Evolved 2 slots: Power x1, Utility x1 495 | -9/Materials | Discovered new exit (range 16) 585 | -9/Materials | Identified exit to Mines 645 | -9/Materials | Entered Mines 646 | -9/Mines | Assembled infested the area 671 | -9/Mines | Met a Derelict bent on vengeance 674 | -9/Mines | Core integrity fell below 50% 687 | -9/Mines | Core integrity fell below 20% 703 | -9/Mines | Lost 7 parts (1p2n2u2w) 866 | -9/Mines | Crushed by falling debris 1041 | -9/Mines | Destroyed by S-10 Pest with Light Assault Rifle Last Messages --------------- Acquired 30 matter. The unstable cave ceiling collapses. Crushed by falling debris. To regain energy, simply wait via the mouse wheel, '.', or KP5. Also make sure your per-turn energy generation is a net positive, and consider deactivating power-draining parts if not. Structural Scanner melted. U-05 Engineer destroyed. U-05 Engineer lays Concrete. ALERT: Construction progress impeded, dispatching reinforcements to local area. Acquired 3 matter. U-05 Engineer destroyed. Acquired 20 matter. Acquired 8 matter. Acquired 2 matter. Med. Laser destroyed. Acquired 1 matter. Map ----- +----------------------------------------------------+ | ?????????????????????????????? ??????????????????? | | ?????????????????????????????? ?????????????????? | | ?????????????????????????????? ?????????????????? | | ??????????????????????????????# ?????????????????? | | ??????????????????????????????# ?????????????????? | | ??????????????????????????????# ?????????????????? | | ??????????????????????????????# ???####??????????? | | ??????????????????????????????# ??## ###????????? | | ??????????????????????????????# ### ##???????? | | ??????????????????????????????# ##??????? | | ??????????????????????????????# ## #??????? | | ??????????????????????????????# ### #??????? | | ??????????????????????????????# #?# ### ##??????? | | ??????????????????####????????# ### #?###???????? | | ?????????????????## ##??????# #???????????? | | ?????????????????# ##?????# #####???????????? | | ????????????????## ##????# #???????????????? | | ????????????????# < ###### #???????????????? | | ????????????????# ! = ##??????????????? | | ?????????????????# ##?????????????? | | ?????????????????## #### #?????????????? | | ??????????????????## # ## #?????????????? | | ???????????????????## # # ##?????????????? | | ????????????????????# ## %# # ###????????????? | | ??????????????###???# # ### ####??????????? | | ?????????????## #######s@# # #??????????? | | ?????# ??????# #g # # #??????????? | | ?????# #### # # #???????????? | | ????# " %= # ## ##???????????? | | ???????????##"%"! #u ## # ##???????????? | | ????????????##" !% ## #???????????? | | ?????????????### = # #####???????????? | | ???????????????## ####### ##??????????????? | | ?????????????????? # ## # ##?????????????? | | ??????????????????## # # ##????????????? | | ???????????????????######### #????????????? | | ???????????????????????????# #####????????????? | | ???????????????????????????## ##????????????????? | | ????????????????????????????####?????????????????? | | ?????????????????????????????????????????????????? | | ?????????????????????????????????????????????????? | | | | | | | | | | | | | | | | | | | +----------------------------------------------------+ Best States ------------- Heat Dissipation 28 Energy Generation 12 Energy Capacity 250 Matter Stores 300 Matter Capacity 300 Sight Range 16 Terrain Scan Density 10 Armor Coverage 300 Evasion (%) 55 Item Schematics ----------------- Med. Laser | -9/Materials | Scanalyzed Robot Schematics ------------------ None Fabricated ------------ Nothing Repaired ---------- Nothing Studied --------- Ion Engine | -9/Materials | Hacked Alien Tech Used ----------------- None Achievements -------------- Hunted Item+ Junior Dev Slippery One There's More Where That Came From Challenges ------------ None Game ------ Seed HeatSingularityMembrane Manual? 0 Play Time 00:12:48 Cumulative 2.1 hours Start 2026.01.14 @ 20:05:15 End 2026.01.14 @ 20:15:47 Sessions 1 Manual Loads 0 Difficulty Rogue Special Mode None Game No. 9 Rogue 9 Adventurer 0 Explorer 0 Win Type - Total 0 Types 0/0/0/0/0/0/0/0/0/0 Lore% 0 Gallery% 5 Achievement% 5 Wizard Run 0 Options --------- Layout 1 ASCII 0 Keyboard 0 Movement Mouse Keybinds 0 Fullscreen 1 Font 24/Smallcaps Map View 50x35 Zoom Use 0% Tactical HUD 0 Map Filters NONE Filters NONE Steam 1 RUN: 7f5370f6-c293-4334-89bd-90ac06e3a087